fUSD/lending_fUSD_20240508
["ID","MTS","AMOUNT","RATE_DAILY","PERIOD"]
[326634376,1715170253855,-500.0,0.00027945,7]
[326634377,1715170253867,-500.0,0.00027945,7]
[326634378,1715170253876,-500.0,0.00027945,7]
[326634379,1715170253885,-500.0,0.00027945,7]
[326634380,1715170253894,-500.0,0.00027945,7]
[326634381,1715170253904,-391.96,0.00027945,7]
[326634382,1715170253913,-500.0,0.00027945,7]
[326634383,1715170253922,-500.0,0.00027945,7]
[326634384,1715170253932,-292.71,0.00027945,7]
[326634385,1715170253941,-511.04,0.00027945,7]
[326634386,1715170253951,-133.13139984,0.00027945,7]
[326634387,1715170253971,-155.00860016,0.00027945,7]
[326634388,1715170253980,-500.0,0.00027945,7]
[326634389,1715170253990,-449.35,0.00027945,7]
[326634390,1715170253999,-500.0,0.00027945,7]
[326634391,1715170254008,-500.0,0.00027945,7]
[326634392,1715170254017,-500.0,0.00027945,7]
[326634393,1715170254027,-152.34037564,0.00027945,7]
[326634394,1715170254039,-10.79962436,0.00027945,7]
[326634395,1715170254049,-289.50037563,0.00027945,7]
[326634396,1715170254080,-355.67387903,0.00027945,7]
[326634397,1715170254110,-1.22574534,0.00027945,7]
[326634398,1715170254122,-500.0,0.00027945,7]
[326634399,1715170254133,-290.87,0.00027945,7]
[326634400,1715170254245,-500.0,0.00027945,7]
[326634401,1715170254255,-500.0,0.00027945,7]
[326634402,1715170254265,-500.0,0.00027945,7]
[326634403,1715170254274,-500.0,0.00027945,7]
[326634404,1715170254284,-191.58,0.00027945,7]
[326634405,1715170254293,-624.75,0.00027945,7]
[326634406,1715170254303,-452.02811194,0.00027945,7]
[326634407,1715170254320,-47.97188806,0.00027945,7]
[326634408,1715170254329,-566.78,0.00027945,7]
[326634409,1715170254341,-500.0,0.00027945,7]
[326634410,1715170254350,-500.0,0.00027945,7]
[326634411,1715170254360,-500.0,0.00027945,7]
[326634412,1715170254372,-989.94,0.00027945,7]
[326634413,1715170254382,-500.0,0.00027945,7]
[326634414,1715170254391,-500.0,0.00027945,7]
[326634415,1715170254401,-500.0,0.00027945,7]
[326634416,1715170254412,-379.49,0.00027945,7]
[326634417,1715170254422,-373.44,0.00027945,7]
[326634418,1715170254437,-569.47,0.00027945,7]
[326634419,1715170254447,-357.55,0.00027945,7]
[326634420,1715170254457,-500.0,0.00027945,7]
[326634421,1715170254467,-616.07,0.00027945,7]
[326634422,1715170254478,-500.0,0.00027945,7]
[326634423,1715170254488,-284.09,0.00027945,7]
[326634424,1715170254498,-212.09,0.00027945,7]
[326634425,1715170254508,-500.0,0.00027945,7]
[326634426,1715170254520,-6118.43,0.00027945,7]
[326634427,1715170254530,-500.0,0.00027945,7]
[326634428,1715170254544,-500.0,0.00027945,7]
[326634429,1715170254553,-500.0,0.00027945,7]
[326634430,1715170254563,-500.0,0.00027945,7]
[326634431,1715170254572,-500.0,0.00027945,7]
[326634432,1715170254582,-500.0,0.00027945,7]
[326634433,1715170254594,-500.0,0.00027945,7]
[326634434,1715170254604,-500.0,0.00027945,7]
[326634435,1715170254616,-491.5,0.00027945,7]
[326634436,1715170254625,-500.0,0.00027945,7]
[326634437,1715170254636,-619.96,0.00027945,7]
[326634438,1715170254648,-583.3630013,0.00027945,7]
[326634439,1715170254657,-293.23,0.00027945,7]
[326634440,1715170254667,-156.27,0.00027945,7]
[326634441,1715170254677,-495.22,0.00027945,7]
[326634442,1715170254687,-2693.3,0.00027945,7]
[326634443,1715170254708,-643.08,0.00027945,2]
[326634444,1715170254718,-500.0,0.00027945,7]
[326634445,1715170254728,-500.0,0.00027945,7]
[326634446,1715170254738,-500.0,0.00027945,7]
[326634447,1715170254747,-500.0,0.00027945,7]
[326634448,1715170254758,-500.0,0.00027945,7]
[326634449,1715170254768,-169.88471002,0.00027945,7]
[326634450,1715170254779,-864.89,0.00027945,7]
[326634451,1715170254790,-210.39,0.00027945,7]
[326634452,1715170254800,-295.25,0.00027945,7]
[326634453,1715170254809,-500.0,0.00027945,7]
[326634454,1715170254819,-500.0,0.00027945,7]
[326634455,1715170254828,-500.0,0.00027945,7]
[326634456,1715170254838,-500.0,0.00027945,7]
[326634457,1715170254848,-500.0,0.00027945,7]
[326634458,1715170254858,-500.0,0.00027945,7]
[326634459,1715170254869,-323.11961052,0.00027945,7]
[326634460,1715170254879,-500.0,0.00027945,7]
[326634461,1715170254888,-500.0,0.00027945,7]
[326634462,1715170254897,-500.0,0.00027945,7]
[326634463,1715170254907,-500.0,0.00027945,7]
[326634464,1715170254917,-500.0,0.00027945,7]
[326634465,1715170254927,-500.0,0.00027945,7]
[326634466,1715170254938,-500.0,0.00027945,7]
[326634467,1715170254948,-500.0,0.00027945,7]
[326634468,1715170254958,-541.21,0.00027945,7]
[326634469,1715170254967,-272.89,0.00027945,7]
[326634470,1715170254977,-500.0,0.00027945,7]
[326634471,1715170254987,-500.0,0.00027945,7]
[326634472,1715170254997,-500.0,0.00027945,7]
[326634473,1715170255007,-479.85,0.00027945,7]
[326634474,1715170255018,-500.0,0.00027945,7]
[326634475,1715170255028,-500.0,0.00027945,7]
[326634476,1715170255037,-500.0,0.00027945,7]
[326634477,1715170255047,-500.0,0.00027945,7]
[326634478,1715170255057,-500.0,0.00027945,7]
[326634479,1715170255066,-256.05633456,0.00027945,7]
[326634480,1715170255076,-516.39,0.00027945,7]
[326634481,1715170255086,-500.0,0.00027945,7]
[326634482,1715170255095,-210.8392617,0.00027945,7]
[326634483,1715170255105,-320.12536179,0.00027945,7]
[326634484,1715170255116,-500.0,0.00027945,7]
[326634485,1715170255127,-500.0,0.00027945,7]
[326634486,1715170255136,-500.0,0.00027945,7]
[326634487,1715170255146,-284.44,0.00027945,7]
[326634488,1715170255156,-151.82,0.00027945,7]
[326634489,1715170255165,-500.0,0.00027945,7]
[326634490,1715170255175,-500.0,0.00027945,7]
[326634491,1715170255184,-384.5,0.00027945,7]
[326634492,1715170255194,-500.0,0.00027945,7]
[326634493,1715170255203,-500.0,0.00027945,7]
[326634494,1715170255213,-500.0,0.00027945,7]
[326634495,1715170255223,-500.0,0.00027945,7]
[326634496,1715170255232,-500.0,0.00027945,7]
[326634497,1715170255242,-180.82,0.00027945,7]
[326634498,1715170255252,-500.0,0.00027945,7]
[326634499,1715170255261,-500.0,0.00027945,7]
[326634500,1715170255272,-745.67,0.00027945,7]
[326634501,1715170255282,-500.0,0.00027945,7]
[326634502,1715170255291,-429.07,0.00027945,7]
[326634503,1715170255301,-329.26,0.00027945,7]
[326634504,1715170255310,-971.0,0.00027945,7]
[326634505,1715170255319,-500.0,0.00027945,7]
[326634506,1715170255329,-500.0,0.00027945,7]
[326634507,1715170255338,-161.15669394,0.00027945,7]
[326634508,1715170255347,-166.14,0.00027945,7]
[326634509,1715170255356,-500.0,0.00027945,7]
[326634510,1715170255368,-268.12,0.00027945,7]
[326634511,1715170255377,-500.0,0.00027945,7]
[326634512,1715170255386,-500.0,0.00027945,7]
[326634513,1715170255395,-306.74,0.00027945,7]
[326634514,1715170255404,-510.08,0.00027945,7]
[326634515,1715170255413,-538.56,0.00027945,7]
[326634516,1715170255424,-500.0,0.00027945,7]
[326634517,1715170255436,-500.0,0.00027945,7]
[326634518,1715170255446,-500.0,0.00027945,7]
[326634519,1715170255455,-500.0,0.00027945,7]
[326634520,1715170255464,-500.0,0.00027945,7]
[326634521,1715170255475,-500.0,0.00027945,7]
[326634522,1715170255485,-500.0,0.00027945,7]
[326634523,1715170255494,-500.0,0.00027945,7]
[326634524,1715170255503,-500.0,0.00027945,7]
[326634525,1715170255516,-527.27,0.00027945,7]
[326634526,1715170255526,-500.0,0.00027945,7]
[326634527,1715170255536,-500.0,0.00027945,7]
[326634528,1715170255546,-266.82,0.00027945,7]
[326634529,1715170255555,-500.0,0.00027945,7]
[326634530,1715170255564,-500.0,0.00027945,7]
[326634531,1715170255573,-500.0,0.00027945,7]
[326634532,1715170255583,-500.0,0.00027945,7]
[326634533,1715170255592,-500.0,0.00027945,7]
[326634534,1715170255602,-500.0,0.00027945,7]
[326634535,1715170255612,-2106.32,0.00027945,7]
[326634536,1715170255623,-500.0,0.00027945,7]
[326634537,1715170255633,-500.0,0.00027945,7]
[326634538,1715170255642,-551.73,0.00027945,7]
[326634539,1715170255652,-586.75,0.00027945,7]
[326634540,1715170255662,-500.0,0.00027945,7]
[326634541,1715170255672,-500.0,0.00027945,7]
[326634542,1715170255681,-500.0,0.00027945,7]
[326634543,1715170255691,-500.0,0.00027945,7]
[326634544,1715170255701,-500.0,0.00027945,7]
[326634545,1715170255711,-185.01,0.00027945,7]
[326634546,1715170255721,-500.0,0.00027945,7]
[326634547,1715170255731,-500.0,0.00027945,7]
[326634548,1715170255741,-2640.26,0.00027945,7]
[326634549,1715170255751,-500.0,0.00027945,7]
[326634550,1715170255760,-477.4068148,0.00027945,7]
[326634551,1715170255770,-500.0,0.00027945,7]
[326634552,1715170255782,-229.68111379,0.00027945,7]
[326634553,1715170255792,-500.0,0.00027945,7]
[326634554,1715170255802,-500.0,0.00027945,7]
[326634555,1715170255811,-377.28,0.00027945,7]
[326634556,1715170255821,-563.68,0.00027945,7]
[326634557,1715170255831,-500.0,0.00027945,7]
[326634558,1715170255840,-500.0,0.00027945,7]
[326634559,1715170255850,-500.0,0.00027945,7]
[326634560,1715170255859,-500.0,0.00027945,7]
[326634561,1715170255870,-500.0,0.00027945,7]
[326634562,1715170255879,-500.0,0.00027945,7]
[326634563,1715170255889,-170.06406151,0.00027945,7]
[326634564,1715170255898,-500.0,0.00027945,7]
[326634565,1715170255908,-500.0,0.00027945,7]
[326634566,1715170255918,-157.29,0.00027945,7]
[326634567,1715170255929,-3367.73,0.00027945,7]
[326634568,1715170255939,-500.0,0.00027945,7]
[326634569,1715170255949,-500.0,0.00027945,7]
[326634570,1715170255958,-500.0,0.00027945,7]
[326634571,1715170255968,-500.0,0.00027945,7]
[326634572,1715170255977,-500.0,0.00027945,7]
[326634573,1715170255987,-500.0,0.00027945,7]
[326634574,1715170255996,-500.0,0.00027945,7]
[326634575,1715170256006,-500.0,0.00027945,7]
[326634576,1715170256018,-500.0,0.00027945,7]
[326634577,1715170256027,-500.0,0.00027945,7]
[326634578,1715170256037,-500.0,0.00027945,7]
[326634579,1715170256047,-428.71,0.00027945,7]
[326634580,1715170256056,-320.48,0.00027945,7]
[326634581,1715170256065,-1065.29,0.00027945,7]
[326634582,1715170256075,-500.0,0.00027945,7]
[326634583,1715170256084,-500.0,0.00027945,7]
[326634584,1715170256093,-500.0,0.00027945,7]
[326634585,1715170256103,-196.21,0.00027945,7]
[326634586,1715170256112,-500.0,0.00027945,7]
[326634587,1715170256122,-141.83739505,0.00027945,7]
[326634588,1715170256137,-358.16260495,0.00027945,7]
[326634589,1715170256147,-500.0,0.00027945,7]
[326634590,1715170256156,-500.0,0.00027945,7]
[326634591,1715170256166,-500.0,0.00027945,7]
[326634592,1715170256175,-500.0,0.00027945,7]
[326634593,1715170256184,-2696.39,0.00027945,7]
[326634594,1715170256194,-457.97,0.00027945,7]
[326634595,1715170256203,-500.0,0.00027945,7]
[326634596,1715170256213,-415.57739505,0.00027945,7]
[326634597,1715170256224,-84.42260495,0.00027945,7]
[326634598,1715170256233,-294.62339505,0.00027945,7]
[326634599,1715170256701,-517.60086136,0.00024,2]
[326634600,1715170256711,-321.50022967,0.00027397,2]
[326634601,1715170256723,-178.49977033,0.00027397,2]
[326634602,1715170256732,-205.37660495,0.00027945,7]
[326634603,1715170256742,-395.08,0.00027945,7]
[326634604,1715170256751,-500.0,0.00027945,7]
[326634605,1715170256760,-192.96649003,0.00027945,7]
[326634606,1715170256770,-500.0,0.00027945,7]
[326634607,1715170256782,-500.0,0.00027945,7]
[326634608,1715170256791,-500.0,0.00027945,7]
[326634609,1715170256801,-500.0,0.00027945,7]
[326634610,1715170256811,-500.0,0.00027945,7]
[326634611,1715170256820,-154.33722222,0.00027945,7]
[326634612,1715170256829,-396.93808233,0.00027945,7]
[326634613,1715170256839,-500.0,0.00027945,7]
[326634614,1715170256849,-303.17406714,0.00027945,7]
[326634615,1715170256860,-417.70593286,0.00027945,7]
[326634616,1715170256870,-364.12565714,0.00027945,7]
[326634617,1715170256882,-248.46434286,0.00027945,7]
[326634618,1715170256891,-500.0,0.00027945,7]
[326634619,1715170256900,-500.0,0.00027945,7]
[326634620,1715170256910,-500.0,0.00027945,7]
[326634621,1715170256919,-500.0,0.00027945,7]
[326634622,1715170256928,-500.0,0.00027945,7]
[326634623,1715170256937,-500.0,0.00027945,7]
[326634624,1715170256946,-500.0,0.00027945,7]
[326634625,1715170256955,-1969.39083604,0.00027945,7]
[326634626,1715170256966,-117.45916396,0.00027945,7]
[326634627,1715170256976,-465.18,0.00027945,7]
[326634628,1715170256985,-200.0,0.00027993,2]
[326634629,1715170256994,-1000.0,0.00027993,10]
[326634630,1715170257004,-505.0,0.00028,5]
[326634631,1715170257014,-150.0,0.0002801,2]
[326634632,1715170257023,-500.0,0.00028083,2]
[326634633,1715170257032,-150.0,0.00028118,2]
[326634634,1715170257042,-22176.0,0.0002819,5]
[326634635,1715170257051,-647.0,0.0002819,2]
[326634636,1715170257061,-506.53505866,0.0002819,2]
[326634637,1715170257069,-510.94862508,0.0002819,2]
[326634638,1715170257079,-507.0,0.0002819,2]
[326634639,1715170257088,-1082.37514591,0.0002819,2]
[326634640,1715170257097,-5049.07429546,0.00028261,2]
[326634641,1715170257108,-601.015996,0.00028261,2]
[326634642,1715170257120,-236.34730352,0.00028261,2]
[326634643,1715170257129,-109.76436666,0.00028264,2]
[326634644,1715170257140,-90.23563334,0.00028264,2]
[326634645,1715170257149,-437.67425616,0.00028264,10]
[326634646,1715170257160,-318.44016882,0.00028264,10]
[326634647,1715170257171,-243.88557502,0.00028264,10]
[326634648,1715170257182,-200.0,0.00028264,7]
[326634649,1715170257191,-458.11552598,0.00028264,2]
[326634650,1715170257202,-41.88447402,0.00028264,2]
[326634651,1715170257211,-200.0,0.00028264,2]
[326634652,1715170257227,-210.68479937,0.00028326,2]
[326634653,1715170257241,-179.62846153,0.00028386,2]
[326634654,1715170257251,-647.0,0.00028472,2]
[326634655,1715170257260,-299.00226509,0.00028472,2]
[326634656,1715170257272,-207.99773491,0.00028472,2]
[326634657,1715170257282,-988.0,0.00028492,3]
[326634658,1715170257292,-476.22,0.00028493,7]
[326634659,1715170257303,-172.53,0.00028493,7]
[326634660,1715170257312,-253.60229024,0.00028493,7]
[326634661,1715170257322,-500.0,0.00028493,7]
[326634662,1715170257331,-470.46,0.00028493,7]
[326634663,1715170257341,-500.0,0.00028493,7]
[326634664,1715170257350,-486.31590352,0.00028493,7]
[326634665,1715170257360,-395.86,0.00028493,7]
[326634666,1715170257371,-315.12,0.00028493,7]
[326634667,1715170257381,-550.55,0.00028493,7]
[326634668,1715170257390,-178.86,0.00028493,7]
[326634669,1715170257399,-500.0,0.00028493,7]
[326634670,1715170257408,-633.26,0.00028493,7]
[326634671,1715170257417,-269.16,0.00028493,7]
[326634672,1715170257431,-151.71,0.00028493,7]
[326634673,1715170257440,-251.79,0.00028493,7]
[326634674,1715170257449,-500.0,0.00028493,7]
[326634675,1715170257458,-500.0,0.00028493,7]
[326634676,1715170257469,-500.0,0.00028493,7]
[326634677,1715170257478,-500.0,0.00028493,7]
[326634678,1715170257487,-500.0,0.00028493,7]
[326634679,1715170257497,-500.0,0.00028493,7]
[326634680,1715170257508,-290.57,0.00028493,7]
[326634681,1715170257517,-500.0,0.00028493,7]
[326634682,1715170257528,-328.69,0.00028493,7]
[326634683,1715170257537,-500.0,0.00028493,7]
[326634684,1715170257546,-269.97,0.00028493,7]
[326634685,1715170257556,-493.91,0.00028493,7]
[326634686,1715170257564,-237.9,0.00028493,7]
[326634687,1715170257574,-200.42045563,0.00028493,7]
[326634688,1715170257586,-299.57954437,0.00028493,7]
[326634689,1715170257595,-253.85,0.00028493,7]
[326634690,1715170257605,-377.70324522,0.00028493,7]
[326634691,1715170257616,-200.13675478,0.00028493,7]
[326634692,1715170257628,-500.0,0.00028493,7]
[326634693,1715170257637,-500.0,0.00028493,7]
[326634694,1715170257646,-465.35,0.00028493,7]
[326634695,1715170257655,-54.45627283,0.00028493,7]
[326634696,1715170257666,-445.54372717,0.00028493,7]
[326634697,1715170257676,-500.0,0.00028493,7]
[326634698,1715170257685,-342.52,0.00028493,7]
[326634699,1715170257694,-287.7495528,0.00028493,7]
[326634700,1715170257705,-212.2504472,0.00028493,7]
[326634701,1715170257714,-423.33121874,0.00028493,7]
[326634702,1715170257723,-169.04,0.00028493,7]
[326634703,1715170257732,-500.0,0.00028493,7]
[326634704,1715170257741,-500.0,0.00028493,7]
[326634705,1715170257750,-500.0,0.00028493,7]
[326634706,1715170257760,-500.0,0.00028493,7]
[326634707,1715170257769,-500.0,0.00028493,7]
[326634708,1715170257786,-187.68,0.00028493,7]
[326634709,1715170257797,-500.0,0.00028493,7]
[326634710,1715170257807,-206.02,0.00028493,7]
[326634711,1715170257816,-500.0,0.00028493,7]
[326634712,1715170257825,-500.0,0.00028493,7]
[326634713,1715170257834,-500.0,0.00028493,7]
[326634714,1715170257844,-500.0,0.00028493,7]
[326634715,1715170257853,-500.0,0.00028493,7]
[326634716,1715170257863,-500.0,0.00028493,7]
[326634717,1715170257875,-378.11,0.00028493,7]
[326634718,1715170257884,-500.0,0.00028493,7]
[326634719,1715170257893,-500.0,0.00028493,7]
[326634720,1715170257902,-151.41,0.00028493,7]
[326634721,1715170257911,-500.0,0.00028493,7]
[326634722,1715170257920,-313.56,0.00028493,7]
[326634723,1715170257929,-379.19,0.00028493,7]
[326634724,1715170257939,-500.0,0.00028493,7]
[326634725,1715170257948,-150.0,0.00028493,7]
[326634726,1715170257958,-388.76,0.00028493,7]
[326634727,1715170257967,-472.01,0.00028493,7]
[326634728,1715170257977,-500.0,0.00028493,7]
[326634729,1715170257986,-1421.74,0.00028493,7]
[326634730,1715170257995,-500.0,0.00028493,7]
[326634731,1715170258004,-500.0,0.00028493,7]
[326634732,1715170258013,-199.18,0.00028493,7]
[326634733,1715170258022,-574.64,0.00028493,7]
[326634734,1715170258031,-383.33963101,0.00028493,7]
[326634735,1715170258043,-251.82036899,0.00028493,7]
[326634736,1715170258052,-265.79,0.00028493,7]
[326634737,1715170258061,-500.0,0.00028493,7]
[326634738,1715170258070,-500.0,0.00028493,7]
[326634739,1715170258079,-188.58,0.00028493,7]
[326634740,1715170258089,-500.0,0.00028493,7]
[326634741,1715170258098,-196.46,0.00028493,7]
[326634742,1715170258108,-209.36,0.00028493,7]
[326634743,1715170258117,-200.99,0.00028493,7]
[326634744,1715170258126,-500.0,0.00028493,7]
[326634745,1715170258135,-225.63,0.00028493,7]
[326634746,1715170258144,-500.0,0.00028493,7]
[326634747,1715170258153,-500.0,0.00028493,7]
[326634748,1715170258162,-203.34,0.00028493,7]
[326634749,1715170258171,-500.0,0.00028493,7]
[326634750,1715170258181,-244.9,0.00028493,7]
[326634751,1715170258191,-186.92,0.00028493,7]
[326634752,1715170258200,-568.77,0.00028493,7]
[326634753,1715170258209,-375.63963102,0.00028493,7]
[326634785,1715171446518,-217.09655827,0.00015778,2]
[326634787,1715171446529,-386.93078277,0.00015779,2]
[326634789,1715171446541,-135.07888973,0.00015779,2]
[326634791,1715171446551,-155.0,0.00015779,2]
[326634793,1715171446560,-248.06864272,0.00017059,2]
[326634794,1715171446569,-61.31246763,0.00017159,2]
[326634795,1715171446580,-238.68753237,0.00017159,2]
[326634796,1715171446590,-750.0,0.00018,3]
[326634797,1715171446599,-5000.0,0.00019,2]
[326634798,1715171446608,-1000.0,0.00019115,2]
[326634799,1715171446618,-158.49,0.00019178,2]
[326634800,1715171446627,-1000.0,0.00019359,2]
[326634801,1715171446636,-172.33124232,0.0002,2]
[326634802,1715171446646,-155.0,0.0002,2]
[326634803,1715171446655,-800.0,0.0002,3]
[326634804,1715171446664,-155.0,0.00021999,2]
[326634805,1715171446673,-850.0,0.00022,3]
[326634806,1715171446683,-546.4241888,0.00023647,2]
[326634807,1715171446692,-5277.98467699,0.00023648,2]
[326634808,1715171446703,-6355.56267634,0.00023648,2]
[326634809,1715171446715,-665.99242083,0.00023648,2]
[326634810,1715171446726,-545.79069227,0.00023648,2]
[326634811,1715171446737,-812.64718925,0.00023648,2]
[326634812,1715171446748,-837.82808505,0.00023648,2]
[326634813,1715171446759,-1270.46827519,0.00023648,2]
[326634814,1715171446771,-2272.16363849,0.00023648,2]
[326634815,1715171446782,-7174.92234559,0.00023648,2]
[326634816,1715171446791,-175.16,0.00023744,2]
[326634817,1715171446801,-900.0,0.00024,3]
[326634818,1715171446815,-1072.44064238,0.00024031,2]
[326634819,1715171446825,-214.42,0.00024032,15]
[326634820,1715171446834,-2000.0,0.00024083,2]
[326634821,1715171446844,-150.42,0.0002418,2]
[326634822,1715171446855,-180.2,0.00024235,2]
[326634823,1715171446864,-179.0,0.00024254,2]
[326634824,1715171446873,-250.0,0.0002434,2]
[326634825,1715171446882,-250.0,0.00024488,2]
[326634826,1715171446893,-2219.11364841,0.00025001,2]
[326634827,1715171446903,-471.76227117,0.00025002,2]
[326634828,1715171446912,-155.0,0.00025003,2]
[326634829,1715171446922,-158.37392983,0.00025394,2]
[326634830,1715171446931,-600.74138409,0.00026326,2]
[326634831,1715171446940,-180.0,0.00026746,2]
[326634832,1715171446950,-1741.42627628,0.00027,2]
[326634833,1715171446959,-150.42,0.00027203,2]
[326634834,1715171446968,-843.78,0.00027315,2]
[326634835,1715171446977,-300.74,0.00027315,2]
[326634836,1715171446986,-326.24,0.00027315,2]
[326634837,1715171446994,-351.19,0.00027315,2]
[326634838,1715171447004,-150.0,0.00027315,2]
[326634839,1715171447013,-523.13,0.00027315,2]
[326634840,1715171447022,-300.0,0.00027315,2]
[326634841,1715171447032,-150.0,0.00027315,2]
[326634842,1715171447042,-163.12,0.00027315,2]
[326634843,1715171447051,-150.0,0.00027315,2]
[326634844,1715171447061,-351.19,0.00027315,2]
[326634845,1715171447069,-523.13,0.00027315,2]
[326634846,1715171447078,-150.0,0.00027315,2]
[326634847,1715171447087,-180.07,0.00027315,2]
[326634848,1715171447098,-350.8,0.00027315,2]
[326634849,1715171447107,-150.0,0.00027315,2]
[326634850,1715171447116,-150.0,0.00027315,2]
[326634851,1715171447125,-800.0,0.0002737,2]
[326634852,1715171447134,-790.07556622,0.00027396,3]
[326634853,1715171447146,-67.88397117,0.00027396,3]
[326634854,1715171447156,-500.0,0.00027397,2]
[326634855,1715171447165,-400.16,0.00027397,2]
[326634856,1715171447174,-137.75098845,0.00027397,2]
[326634857,1715171447185,-362.24901155,0.00027397,2]
[326634858,1715171447194,-188.42799434,0.00027397,2]
[326634859,1715171447205,-311.57200566,0.00027397,2]
[326634860,1715171447215,-340.40036898,0.00027397,2]
[326634861,1715171447225,-402.74761254,0.00027397,2]
[326634918,1715171450995,-5000.0,0.00019114,2]
[326634921,1715171451006,-546.4241888,0.00022,2]
[326634923,1715171451015,-9141.6134401,0.00025,2]
[326634925,1715171451024,-620.0,0.00027344,2]
[326634927,1715171451034,-1674.60238746,0.00027397,2]
[326634928,1715171451043,-500.0,0.00027397,2]
[326634931,1715171451052,-500.0,0.00027397,2]
[326634933,1715171451061,-500.0,0.00027397,2]
[326634935,1715171451070,-500.0,0.00027397,2]
[326634937,1715171451079,-500.0,0.00027397,2]
[326634939,1715171451088,-374.83,0.00027397,2]
[326634941,1715171451099,-573.95,0.00027397,2]
[326634943,1715171451109,-500.0,0.00027397,2]
[326634946,1715171451118,-590.75976943,0.00027397,2]
[326634948,1715171451127,-196.61027653,0.00027397,2]
[326634949,1715171451137,-500.0,0.00027397,2]
[326634952,1715171451147,-206.50185656,0.00027397,2]
[326634954,1715171451156,-907.45,0.00027397,2]
[326634956,1715171451165,-180.24,0.00027397,2]
[326634958,1715171451174,-500.0,0.00027397,2]
[326634960,1715171451183,-150.0,0.00027397,2]
[326634962,1715171451192,-200.0,0.00027533,7]
[326634963,1715171451202,-200.0,0.00027711,2]
[326634965,1715171451212,-1000.0,0.00027711,10]
[326634967,1715171451223,-500.0,0.00027711,2]
[326634969,1715171451234,-200.0,0.00027711,2]
[326634971,1715171451244,-214.42,0.00027768,15]
[326634973,1715171451254,-2276.92305348,0.000279,2]
[326634975,1715171451264,-2276.92305348,0.000279,2]
[326634977,1715171451274,-2276.92305348,0.000279,2]
[326634979,1715171451283,-2276.92305348,0.000279,2]
[326634981,1715171451293,-2276.92305348,0.000279,2]
[326634982,1715171451302,-2276.92305348,0.000279,2]
[326634983,1715171451312,-1185.39032699,0.000279,2]
[326634984,1715171451323,-370.96436731,0.000279,2]
[326634985,1715171451334,-720.56835918,0.000279,2]
[326634986,1715171451344,-2276.92305348,0.000279,2]
[326634987,1715171451354,-2276.92305348,0.000279,2]
[326634988,1715171451364,-2276.92305348,0.000279,2]
[326634989,1715171451374,-2276.92305348,0.000279,2]
[326634990,1715171451384,-2276.92305348,0.000279,2]
[326634991,1715171451394,-2276.92305348,0.000279,2]
[326634992,1715171451403,-2276.92305348,0.000279,2]
[326634993,1715171451550,-2276.92305348,0.000279,2]
[326634994,1715171451560,-2276.92305348,0.000279,2]
[326634995,1715171451569,-2276.92305348,0.000279,2]
[326634996,1715171451579,-2276.92305348,0.000279,2]
[326634997,1715171451588,-2276.92305348,0.000279,2]
[326634998,1715171451598,-2277.42,0.000279,2]